[Event "*** Titled Tuesday Blitz"]
[Site "Chess.com"]
[Date "2020.11.10"]
[Round "9"]
[White "mamonika"]
[Black "BanjoKazooieN64"]
[Result "0-1"]
[WhiteElo "2053"]
[BlackElo "2395"]
[TimeControl "180+1"]
[EndTime "11:51:16 PST"]
[Termination "BanjoKazooieN64 won by checkmate"]

1. d4 {[%clk 0:03:00.9]} 1... Nf6 {[%clk 0:02:59.6]} 2. c4 {[%clk 0:03:00.3]}
2... g6 {[%clk 0:03:00]} 3. Nc3 {[%clk 0:02:59.6]} 3... Bg7 {[%clk 0:03:00.5]}
4. g3 {[%clk 0:02:59.6]} 4... O-O {[%clk 0:03:00.3]} 5. Bg2 {[%clk 0:02:59.6]}
5... d6 {[%clk 0:03:00.9]} 6. e4 {[%clk 0:02:59.6]} 6... c6 {[%clk 0:03:00.8]}
7. Nf3 {[%clk 0:02:53.2]} 7... Qa5 {[%clk 0:02:59.3]} 8. O-O {[%clk 0:02:52.2]}
8... Qh5 {[%clk 0:02:59.3]} 9. Nd2 {[%clk 0:02:42.9]} 9... Bg4 {[%clk
0:02:57.1]} 10. f3 {[%clk 0:02:40.2]} 10... Bh3 {[%clk 0:02:57.5]} 11. f4 {[%clk
0:02:38.3]} 11... Qxd1 {[%clk 0:02:49.3]} 12. Rxd1 {[%clk 0:02:37.8]} 12... Bxg2
{[%clk 0:02:49.6]} 13. Kxg2 {[%clk 0:02:38.1]} 13... e5 {[%clk 0:02:31.9]} 14.
dxe5 {[%clk 0:02:37.1]} 14... dxe5 {[%clk 0:02:32.1]} 15. Nf3 {[%clk 0:02:36.7]}
15... exf4 {[%clk 0:02:30.4]} 16. Bxf4 {[%clk 0:02:35.1]} 16... Na6 {[%clk
0:02:26.3]} 17. a3 {[%clk 0:02:31.1]} 17... Nc5 {[%clk 0:02:24.3]} 18. Bd6
{[%clk 0:02:30]} 18... Ncxe4 {[%clk 0:02:21.9]} 19. Bxf8 {[%clk 0:02:29.1]}
19... Rxf8 {[%clk 0:02:22.8]} 20. Rac1 {[%clk 0:02:24.3]} 20... h6 {[%clk
0:02:18.4]} 21. b4 {[%clk 0:02:15.8]} 21... Re8 {[%clk 0:02:15.2]} 22. Re1
{[%clk 0:02:11.1]} 22... Nxc3 {[%clk 0:02:06]} 23. Rxc3 {[%clk 0:02:12]} 23...
Rd8 {[%clk 0:02:00.8]} 24. Rc2 {[%clk 0:02:08.9]} 24... Rd3 {[%clk 0:01:55.9]}
25. a4 {[%clk 0:02:02.8]} 25... Ra3 {[%clk 0:01:47]} 26. Re7 {[%clk 0:02:02.4]}
26... Rxa4 {[%clk 0:01:32.9]} 27. Rxb7 {[%clk 0:02:02.3]} 27... Ra3 {[%clk
0:01:22.6]} 28. Rc7 {[%clk 0:01:59.7]} 28... Ng4 {[%clk 0:01:20.1]} 29. Re2
{[%clk 0:01:46.6]} 29... Ne3+ {[%clk 0:01:17.7]} 30. Kf2 {[%clk 0:01:46.9]}
30... Nxc4 {[%clk 0:01:12.6]} 31. Rxc6 {[%clk 0:01:46.1]} 31... Rc3 {[%clk
0:01:02.3]} 32. Rc8+ {[%clk 0:01:31.9]} 32... Kh7 {[%clk 0:01:01.9]} 33. Rc7
{[%clk 0:01:32]} 33... g5 {[%clk 0:00:27.1]} 34. Rxf7 {[%clk 0:01:25.1]} 34...
Kg6 {[%clk 0:00:23.1]} 35. Rxa7 {[%clk 0:01:23.9]} 35... h5 {[%clk 0:00:16.1]}
36. Re6+ {[%clk 0:01:12.3]} 36... Kf5 {[%clk 0:00:14.2]} 37. Rc6 {[%clk
0:01:11.1]} 37... Rc2+ {[%clk 0:00:06.5]} 38. Ke1 {[%clk 0:01:09.8]} 38... Bc3+
{[%clk 0:00:05.9]} 39. Kd1 {[%clk 0:01:08.5]} 39... Ne3# {[%clk 0:00:06]} 0-1

[Event "*** Titled Tuesday Blitz"]
[Site "Chess.com"]
[Date "2020.11.10"]
[Round "9"]
[White "SerGo055"]
[Black "Vanina1989"]
[Result "0-1"]
[WhiteElo "2468"]
[BlackElo "2641"]
[TimeControl "180+1"]
[EndTime "11:51:17 PST"]
[Termination "Vanina1989 won by checkmate"]

1. d4 {[%clk 0:03:00.9]} 1... Nf6 {[%clk 0:02:59.4]} 2. Nf3 {[%clk 0:02:58.7]}
2... d5 {[%clk 0:02:58.2]} 3. c4 {[%clk 0:02:58.4]} 3... c6 {[%clk 0:02:58.7]}
4. Nc3 {[%clk 0:02:57.8]} 4... e6 {[%clk 0:02:57.8]} 5. Bg5 {[%clk 0:02:57.1]}
5... Nbd7 {[%clk 0:02:57.9]} 6. e3 {[%clk 0:02:56.6]} 6... Qa5 {[%clk
0:02:58.1]} 7. Nd2 {[%clk 0:02:52.3]} 7... h6 {[%clk 0:02:56.3]} 8. Bh4 {[%clk
0:02:50.8]} 8... Bb4 {[%clk 0:02:55.8]} 9. Qb3 {[%clk 0:02:50.1]} 9... O-O
{[%clk 0:02:55.2]} 10. Be2 {[%clk 0:02:47.6]} 10... b6 {[%clk 0:02:53]} 11. cxd5
{[%clk 0:02:42.4]} 11... cxd5 {[%clk 0:02:51.2]} 12. O-O {[%clk 0:02:41.9]}
12... Bxc3 {[%clk 0:02:50.5]} 13. bxc3 {[%clk 0:02:41.6]} 13... Ba6 {[%clk
0:02:50.8]} 14. Bxa6 {[%clk 0:02:39.7]} 14... Qxa6 {[%clk 0:02:51.1]} 15. c4
{[%clk 0:02:39.7]} 15... Rfc8 {[%clk 0:02:49.9]} 16. Rfc1 {[%clk 0:02:35.3]}
16... Qa5 {[%clk 0:02:49.9]} 17. Nf3 {[%clk 0:02:12.8]} 17... Ne4 {[%clk
0:02:44.1]} 18. cxd5 {[%clk 0:01:58.3]} 18... exd5 {[%clk 0:02:44.2]} 19. h3
{[%clk 0:01:48.5]} 19... Rc3 {[%clk 0:02:38.8]} 20. Rxc3 {[%clk 0:01:47.1]}
20... Nxc3 {[%clk 0:02:38.7]} 21. Kh2 {[%clk 0:01:43.6]} 21... Rc8 {[%clk
0:02:11.4]} 22. Rc1 {[%clk 0:01:11.8]} 22... f6 {[%clk 0:01:54.5]} 23. Bg3
{[%clk 0:01:02]} 23... b5 {[%clk 0:01:38.4]} 24. Bd6 {[%clk 0:00:52.7]} 24...
Rc4 {[%clk 0:01:37.9]} 25. a3 {[%clk 0:00:40.6]} 25... Ne4 {[%clk 0:01:36.1]}
26. Bb4 {[%clk 0:00:36.8]} 26... Qc7+ {[%clk 0:01:35.6]} 27. g3 {[%clk
0:00:33.1]} 27... a5 {[%clk 0:01:21.7]} 28. Be1 {[%clk 0:00:16.2]} 28... Rxc1
{[%clk 0:01:21.4]} 29. Qxd5+ {[%clk 0:00:15.7]} 29... Kh8 {[%clk 0:01:21.4]} 30.
Qxe4 {[%clk 0:00:16.2]} 30... Nf8 {[%clk 0:01:16.8]} 31. d5 {[%clk 0:00:12.3]}
31... Rd1 {[%clk 0:01:01.8]} 32. Bd2 {[%clk 0:00:08.7]} 32... Kg8 {[%clk
0:00:57.6]} 33. Kg2 {[%clk 0:00:08.3]} 33... Qc4 {[%clk 0:00:57]} 34. Qe7 {[%clk
0:00:04.9]} 34... Qf1+ {[%clk 0:00:56.5]} 35. Kh2 {[%clk 0:00:05.3]} 35... Qh1#
{[%clk 0:00:56.7]} 0-1

[Event "*** Titled Tuesday Blitz"]
[Site "Chess.com"]
[Date "2020.11.10"]
[Round "9"]
[White "orestn"]
[Black "petrkostenko"]
[Result "1-0"]
[WhiteElo "2285"]
[BlackElo "2448"]
[TimeControl "180+1"]
[EndTime "11:51:19 PST"]
[Termination "orestn won by resignation"]

1. e4 {[%clk 0:03:00.9]} 1... e6 {[%clk 0:02:34.2]} 2. d4 {[%clk 0:02:59.1]}
2... d5 {[%clk 0:02:34.7]} 3. e5 {[%clk 0:02:59.6]} 3... c5 {[%clk 0:02:33.7]}
4. c3 {[%clk 0:03:00.5]} 4... Nc6 {[%clk 0:02:33.7]} 5. Nf3 {[%clk 0:03:01.4]}
5... Bd7 {[%clk 0:02:32.9]} 6. Bd3 {[%clk 0:03:01.8]} 6... cxd4 {[%clk
0:02:32.1]} 7. O-O {[%clk 0:03:02.2]} 7... dxc3 {[%clk 0:02:29.9]} 8. Nxc3
{[%clk 0:03:03.1]} 8... Nge7 {[%clk 0:02:29.8]} 9. Re1 {[%clk 0:03:02.1]} 9...
Ng6 {[%clk 0:02:29.5]} 10. a3 {[%clk 0:02:54.6]} 10... Be7 {[%clk 0:02:25.2]}
11. b4 {[%clk 0:02:52.7]} 11... O-O {[%clk 0:02:18.5]} 12. Bb2 {[%clk
0:02:51.6]} 12... Re8 {[%clk 0:02:18.1]} 13. h3 {[%clk 0:02:32]} 13... Rc8
{[%clk 0:02:15.9]} 14. Rc1 {[%clk 0:02:29.7]} 14... Nf4 {[%clk 0:01:54.7]} 15.
Bb1 {[%clk 0:02:27.4]} 15... f5 {[%clk 0:01:46.8]} 16. Qd2 {[%clk 0:02:17.3]}
16... Ng6 {[%clk 0:01:45.4]} 17. Nxd5 {[%clk 0:02:10.2]} 17... Bf8 {[%clk
0:01:15.6]} 18. Ba2 {[%clk 0:01:57.9]} 18... Nce7 {[%clk 0:00:44.7]} 19. Ne3
{[%clk 0:01:50.2]} 19... Rxc1 {[%clk 0:00:39.1]} 20. Rxc1 {[%clk 0:01:46.9]}
20... Bc8 {[%clk 0:00:38.7]} 21. Qc2 {[%clk 0:01:40.6]} 21... f4 {[%clk
0:00:32.7]} 22. Rd1 {[%clk 0:01:24.9]} 22... Qb6 {[%clk 0:00:28.9]} 23. Nc4
{[%clk 0:01:24.5]} 23... Qc6 {[%clk 0:00:29]} 24. b5 {[%clk 0:01:16]} 24... Qc7
{[%clk 0:00:28.2]} 25. Qa4 {[%clk 0:01:08.7]} 25... Rd8 {[%clk 0:00:23.5]} 26.
Nd6 {[%clk 0:01:03.1]} 26... Nd5 {[%clk 0:00:21.9]} 27. Rxd5 {[%clk 0:00:58.3]}
27... Bxd6 {[%clk 0:00:13.6]} 28. Rxd6 {[%clk 0:00:56.3]} 28... Rxd6 {[%clk
0:00:14.1]} 29. exd6 {[%clk 0:00:56]} 29... Qxd6 {[%clk 0:00:14.8]} 30. Qd4
{[%clk 0:00:54.7]} 30... Qxd4 {[%clk 0:00:14.2]} 31. Bxd4 {[%clk 0:00:54.1]}
31... b6 {[%clk 0:00:15.1]} 32. Be5 {[%clk 0:00:51.9]} 32... Bd7 {[%clk
0:00:15]} 33. a4 {[%clk 0:00:51.5]} 1-0

[Event "*** Titled Tuesday Blitz"]
[Site "Chess.com"]
[Date "2020.11.10"]
[Round "9"]
[White "jacky72"]
[Black "sofaceindisguise"]
[Result "0-1"]
[WhiteElo "2532"]
[BlackElo "2691"]
[TimeControl "180+1"]
[EndTime "11:51:20 PST"]
[Termination "sofaceindisguise won by checkmate"]

1. d4 {[%clk 0:03:00.9]} 1... Nf6 {[%clk 0:02:58.6]} 2. c4 {[%clk 0:03:00.6]}
2... g6 {[%clk 0:02:58.1]} 3. Nc3 {[%clk 0:03:00]} 3... Bg7 {[%clk 0:02:58.3]}
4. e4 {[%clk 0:03:00.6]} 4... O-O {[%clk 0:02:56.9]} 5. Be2 {[%clk 0:03:01.5]}
5... c6 {[%clk 0:02:56.1]} 6. Bg5 {[%clk 0:03:02]} 6... d5 {[%clk 0:02:55.2]} 7.
cxd5 {[%clk 0:03:02.9]} 7... cxd5 {[%clk 0:02:55.4]} 8. Bxf6 {[%clk 0:02:57]}
8... Bxf6 {[%clk 0:02:37.7]} 9. Nxd5 {[%clk 0:02:56.7]} 9... Bg7 {[%clk
0:02:38]} 10. Nf3 {[%clk 0:02:56.3]} 10... Nc6 {[%clk 0:02:36.4]} 11. O-O {[%clk
0:02:53.7]} 11... e6 {[%clk 0:02:31.5]} 12. Nc3 {[%clk 0:02:54.1]} 12... Nxd4
{[%clk 0:02:31.6]} 13. Nxd4 {[%clk 0:02:54.5]} 13... Bxd4 {[%clk 0:02:31.8]} 14.
Qd3 {[%clk 0:02:53.7]} 14... Qf6 {[%clk 0:02:22.1]} 15. Rad1 {[%clk 0:02:49.2]}
15... Bxc3 {[%clk 0:02:17.5]} 16. Qxc3 {[%clk 0:02:49]} 16... Qxc3 {[%clk
0:02:18]} 17. bxc3 {[%clk 0:02:49.9]} 17... b6 {[%clk 0:02:18.7]} 18. e5 {[%clk
0:02:46.4]} 18... Bb7 {[%clk 0:02:02.6]} 19. Rd7 {[%clk 0:02:46]} 19... Bc6
{[%clk 0:02:02.7]} 20. Rd6 {[%clk 0:02:39]} 20... Rfc8 {[%clk 0:02:02]} 21. Ba6
{[%clk 0:02:30.4]} 21... Rc7 {[%clk 0:02:00.4]} 22. c4 {[%clk 0:02:31]} 22...
Kg7 {[%clk 0:01:59.8]} 23. Rfd1 {[%clk 0:02:31]} 23... Re8 {[%clk 0:01:55.8]}
24. f4 {[%clk 0:02:24]} 24... Ree7 {[%clk 0:01:54.3]} 25. Kf2 {[%clk 0:02:16.1]}
25... Ba4 {[%clk 0:01:53.5]} 26. R1d4 {[%clk 0:02:13.4]} 26... Rc5 {[%clk
0:01:53]} 27. Rd2 {[%clk 0:01:59.1]} 27... Ra5 {[%clk 0:01:49]} 28. Bc8 {[%clk
0:01:59]} 28... Rc7 {[%clk 0:01:48.9]} 29. Bd7 {[%clk 0:01:54.4]} 29... Rxc4
{[%clk 0:01:47.7]} 30. g3 {[%clk 0:01:51.2]} 30... Bc2 {[%clk 0:01:37.8]} 31.
Be8 {[%clk 0:01:41.7]} 31... g5 {[%clk 0:01:25.7]} 32. fxg5 {[%clk 0:01:37.2]}
32... Rxe5 {[%clk 0:01:21.4]} 33. h4 {[%clk 0:01:37.7]} 33... Bg6 {[%clk
0:01:17.6]} 34. Rd7 {[%clk 0:01:34.1]} 34... a5 {[%clk 0:01:13.5]} 35. Rb7
{[%clk 0:01:33.4]} 35... Rb4 {[%clk 0:01:13.4]} 36. Rdd7 {[%clk 0:01:32.7]}
36... Rb2+ {[%clk 0:01:10.4]} 37. Kf3 {[%clk 0:01:29.9]} 37... Rf5+ {[%clk
0:01:01.2]} 38. Kg4 {[%clk 0:01:30.1]} 38... Rff2 {[%clk 0:00:46.1]} 39. Rd4
{[%clk 0:01:16.7]} 39... h5+ {[%clk 0:00:31.4]} 40. gxh6+ {[%clk 0:01:16.6]}
40... Kxh6 {[%clk 0:00:31.2]} 41. h5 {[%clk 0:00:48]} 41... Bxh5+ {[%clk
0:00:28.7]} 42. Kh4 {[%clk 0:00:48]} 42... Rh2# {[%clk 0:00:28.7]} 0-1

[Event "*** Titled Tuesday Blitz"]
[Site "Chess.com"]
[Date "2020.11.10"]
[Round "9"]
[White "Sergey85Rodchenkov"]
[Black "PetrolulSah"]
[Result "1/2-1/2"]
[WhiteElo "2456"]
[BlackElo "2240"]
[TimeControl "180+1"]
[EndTime "11:51:20 PST"]
[Termination "Game drawn by repetition"]

1. e4 {[%clk 0:03:00.9]} 1... e5 {[%clk 0:02:57.9]} 2. Nf3 {[%clk 0:03:00]} 2...
Nc6 {[%clk 0:02:55.4]} 3. Bc4 {[%clk 0:02:59.8]} 3... Bc5 {[%clk 0:02:53.9]} 4.
d3 {[%clk 0:02:59.2]} 4... Nf6 {[%clk 0:02:52]} 5. O-O {[%clk 0:02:59.1]} 5...
O-O {[%clk 0:02:51.7]} 6. Re1 {[%clk 0:02:59.2]} 6... d6 {[%clk 0:02:51.7]} 7.
c3 {[%clk 0:02:58.8]} 7... Bg4 {[%clk 0:02:50.1]} 8. Nbd2 {[%clk 0:02:57.6]}
8... a6 {[%clk 0:02:49.5]} 9. Nf1 {[%clk 0:02:54.8]} 9... Na5 {[%clk 0:02:43.9]}
10. b4 {[%clk 0:02:54]} 10... Nxc4 {[%clk 0:02:42.5]} 11. bxc5 {[%clk 0:02:54]}
11... Na5 {[%clk 0:02:41.3]} 12. Be3 {[%clk 0:02:38.3]} 12... Nh5 {[%clk
0:02:32]} 13. Ng3 {[%clk 0:02:36.5]} 13... Qf6 {[%clk 0:02:28.5]} 14. Rb1 {[%clk
0:02:31]} 14... Rfd8 {[%clk 0:02:00.4]} 15. Qa4 {[%clk 0:02:14.6]} 15... Nf4
{[%clk 0:01:18.5]} 16. Bxf4 {[%clk 0:01:57.4]} 16... exf4 {[%clk 0:01:16.1]} 17.
Qxa5 {[%clk 0:01:50.3]} 17... fxg3 {[%clk 0:01:13.9]} 18. hxg3 {[%clk
0:01:49.3]} 18... dxc5 {[%clk 0:00:52]} 19. Rxb7 {[%clk 0:01:37.5]} 19... Bxf3
{[%clk 0:00:41.4]} 20. gxf3 {[%clk 0:01:36.8]} 20... Rxd3 {[%clk 0:00:34.9]} 21.
Qxc7 {[%clk 0:01:19.2]} 21... h6 {[%clk 0:00:34]} 22. f4 {[%clk 0:01:10.3]}
22... Rxc3 {[%clk 0:00:31]} 23. e5 {[%clk 0:01:09]} 23... Qf5 {[%clk 0:00:30]}
24. e6 {[%clk 0:01:03]} 24... Rf8 {[%clk 0:00:26.4]} 25. e7 {[%clk 0:00:58.9]}
25... Re8 {[%clk 0:00:17.3]} 26. Rb8 {[%clk 0:00:58.9]} 26... Qg4 {[%clk
0:00:14.8]} 27. Rxe8+ {[%clk 0:00:57.4]} 27... Kh7 {[%clk 0:00:14.9]} 28. Rh8+
{[%clk 0:00:54.6]} 28... Kg6 {[%clk 0:00:14.4]} 29. e8=Q {[%clk 0:00:55]} 29...
Rxg3+ {[%clk 0:00:13.9]} 30. fxg3 {[%clk 0:00:48]} 30... Qxg3+ {[%clk
0:00:13.8]} 31. Kf1 {[%clk 0:00:48.3]} 31... Qf3+ {[%clk 0:00:13.4]} 32. Kg1
{[%clk 0:00:48.8]} 32... Qg3+ {[%clk 0:00:13]} 33. Kf1 {[%clk 0:00:49.3]} 33...
Qf3+ {[%clk 0:00:12.8]} 34. Kg1 {[%clk 0:00:49.7]} 34... Qg3+ {[%clk 0:00:12.9]}
1/2-1/2

[Event "*** Titled Tuesday Blitz"]
[Site "Chess.com"]
[Date "2020.11.10"]
[Round "9"]
[White "profofchess"]
[Black "Kazmin_Dmitrij"]
[Result "1-0"]
[WhiteElo "2413"]
[BlackElo "2262"]
[TimeControl "180+1"]
[EndTime "11:51:20 PST"]
[Termination "profofchess won by resignation"]

1. e4 {[%clk 0:03:00.9]} 1... e5 {[%clk 0:02:58.8]} 2. Nf3 {[%clk 0:03:00.4]}
2... d6 {[%clk 0:02:58.9]} 3. d4 {[%clk 0:02:59.7]} 3... exd4 {[%clk 0:02:58.9]}
4. Qxd4 {[%clk 0:02:56.2]} 4... Qf6 {[%clk 0:02:52.1]} 5. Qd3 {[%clk 0:02:43.1]}
5... Be7 {[%clk 0:02:46.5]} 6. Nc3 {[%clk 0:02:43]} 6... c6 {[%clk 0:02:37.2]}
7. h4 {[%clk 0:02:31.4]} 7... h6 {[%clk 0:02:35.3]} 8. Bg5 {[%clk 0:02:30.3]}
8... Qe6 {[%clk 0:02:26.2]} 9. Nd4 {[%clk 0:02:21.4]} 9... Qd7 {[%clk
0:02:25.8]} 10. Be3 {[%clk 0:02:15.2]} 10... Nf6 {[%clk 0:02:21.3]} 11. Nf5
{[%clk 0:02:14.5]} 11... O-O {[%clk 0:01:56.3]} 12. Bxh6 {[%clk 0:02:13.9]}
12... Nh5 {[%clk 0:01:41.5]} 13. Be2 {[%clk 0:02:03.2]} 13... gxh6 {[%clk
0:01:37.5]} 14. Bxh5 {[%clk 0:02:03.1]} 14... Kh7 {[%clk 0:01:36.1]} 15. O-O-O
{[%clk 0:01:45.1]} 15... Na6 {[%clk 0:01:25.5]} 16. Nxe7 {[%clk 0:01:31.4]}
16... Qxe7 {[%clk 0:01:24.5]} 17. e5+ {[%clk 0:01:31.7]} 17... Kh8 {[%clk
0:01:19.7]} 18. exd6 {[%clk 0:01:30.7]} 18... Qf6 {[%clk 0:01:16.2]} 19. d7
{[%clk 0:01:28.1]} 19... Nc5 {[%clk 0:01:15.2]} 20. Qe3 {[%clk 0:01:11.3]} 20...
Nxd7 {[%clk 0:01:11.5]} 21. Ne4 {[%clk 0:01:07.6]} 21... Qg7 {[%clk 0:01:05.5]}
22. Rh3 {[%clk 0:00:59]} 22... Nf6 {[%clk 0:00:40.3]} 23. Rg3 {[%clk 0:00:53.5]}
23... Nxh5 {[%clk 0:00:36]} 24. Rxg7 {[%clk 0:00:53]} 24... Kxg7 {[%clk
0:00:33.6]} 25. Nd6 {[%clk 0:00:38.7]} 25... Be6 {[%clk 0:00:19.7]} 26. g4
{[%clk 0:00:38.2]} 26... Nf6 {[%clk 0:00:18.2]} 27. Qe5 {[%clk 0:00:34.2]} 27...
Kg6 {[%clk 0:00:12.1]} 28. h5+ {[%clk 0:00:32.1]} 28... Kg7 {[%clk 0:00:12.3]}
29. Ne4 {[%clk 0:00:30]} 1-0

[Event "*** Titled Tuesday Blitz"]
[Site "Chess.com"]
[Date "2020.11.10"]
[Round "9"]
[White "reniite"]
[Black "AntonovaNadezhda"]
[Result "0-1"]
[WhiteElo "1931"]
[BlackElo "2122"]
[TimeControl "180+1"]
[EndTime "11:51:20 PST"]
[Termination "AntonovaNadezhda won by checkmate"]

1. e4 {[%clk 0:03:00.9]} 1... c5 {[%clk 0:01:58.4]} 2. Nf3 {[%clk 0:02:59.1]}
2... d6 {[%clk 0:01:57]} 3. d4 {[%clk 0:02:58.9]} 3... cxd4 {[%clk 0:01:56.5]}
4. Nxd4 {[%clk 0:02:59.8]} 4... Nf6 {[%clk 0:01:56.7]} 5. Nc3 {[%clk 0:02:50.3]}
5... a6 {[%clk 0:01:56.8]} 6. h3 {[%clk 0:02:50]} 6... e5 {[%clk 0:01:55.1]} 7.
Nde2 {[%clk 0:02:49.4]} 7... Be7 {[%clk 0:01:53.7]} 8. g4 {[%clk 0:02:48.3]}
8... b5 {[%clk 0:01:46.1]} 9. Bg2 {[%clk 0:02:44.9]} 9... Bb7 {[%clk 0:01:45]}
10. Ng3 {[%clk 0:02:43.4]} 10... g6 {[%clk 0:01:43.3]} 11. Be3 {[%clk
0:02:40.2]} 11... Nbd7 {[%clk 0:01:38.6]} 12. Qd2 {[%clk 0:02:34.9]} 12... Qc7
{[%clk 0:01:36.9]} 13. O-O-O {[%clk 0:02:33.1]} 13... b4 {[%clk 0:01:34]} 14.
Nd5 {[%clk 0:02:30.7]} 14... Bxd5 {[%clk 0:01:28.4]} 15. exd5 {[%clk 0:02:29.9]}
15... a5 {[%clk 0:01:25.5]} 16. Rhe1 {[%clk 0:02:18.3]} 16... Nc5 {[%clk
0:01:18.6]} 17. Kb1 {[%clk 0:01:41.9]} 17... O-O {[%clk 0:01:17.4]} 18. f4
{[%clk 0:01:40.5]} 18... exf4 {[%clk 0:01:15.6]} 19. Bxf4 {[%clk 0:01:39.2]}
19... a4 {[%clk 0:01:09.8]} 20. Qxb4 {[%clk 0:01:31]} 20... Rfb8 {[%clk
0:01:08.6]} 21. Qa3 {[%clk 0:01:25.2]} 21... Rb7 {[%clk 0:00:54.2]} 22. Ka1
{[%clk 0:01:06]} 22... Rab8 {[%clk 0:00:53.6]} 23. Rb1 {[%clk 0:01:04]} 23...
Bf8 {[%clk 0:00:48.9]} 24. c3 {[%clk 0:01:01]} 24... Nd3 {[%clk 0:00:45.8]} 25.
Bd2 {[%clk 0:00:31.9]} 25... Nxb2 {[%clk 0:00:35]} 26. Re4 {[%clk 0:00:18.6]}
26... Nxe4 {[%clk 0:00:33.1]} 27. Nxe4 {[%clk 0:00:18.7]} 27... Bg7 {[%clk
0:00:30.6]} 28. Bf1 {[%clk 0:00:16.1]} 28... Nc4 {[%clk 0:00:28.3]} 29. Bxc4
{[%clk 0:00:16.1]} 29... Rxb1# {[%clk 0:00:27.2]} 0-1

[Event "*** Titled Tuesday Blitz"]
[Site "Chess.com"]
[Date "2020.11.10"]
[Round "9"]
[White "mirciulica14"]
[Black "grunbergmihai"]
[Result "0-1"]
[WhiteElo "2629"]
[BlackElo "2490"]
[TimeControl "180+1"]
[EndTime "11:51:23 PST"]
[Termination "grunbergmihai won by resignation"]

1. d4 {[%clk 0:03:00.9]} 1... Nf6 {[%clk 0:02:57.4]} 2. c4 {[%clk 0:03:00.4]}
2... g6 {[%clk 0:02:57.9]} 3. g3 {[%clk 0:03:00.4]} 3... d5 {[%clk 0:02:58.8]}
4. cxd5 {[%clk 0:03:00]} 4... Nxd5 {[%clk 0:02:57.7]} 5. Bg2 {[%clk 0:02:59.8]}
5... Bg7 {[%clk 0:02:57.5]} 6. e4 {[%clk 0:02:58.7]} 6... Nb4 {[%clk 0:02:56.1]}
7. d5 {[%clk 0:01:46.6]} 7... O-O {[%clk 0:02:34.8]} 8. Ne2 {[%clk 0:01:42.9]}
8... c6 {[%clk 0:02:31.2]} 9. Nbc3 {[%clk 0:01:42.6]} 9... cxd5 {[%clk
0:02:29.9]} 10. exd5 {[%clk 0:01:43.5]} 10... Bf5 {[%clk 0:02:25.6]} 11. O-O
{[%clk 0:01:33.6]} 11... Nc2 {[%clk 0:02:24]} 12. Rb1 {[%clk 0:01:33.4]} 12...
Nb4 {[%clk 0:02:23.9]} 13. Ra1 {[%clk 0:01:32.1]} 13... N8a6 {[%clk 0:02:23.7]}
14. a3 {[%clk 0:00:44.1]} 14... Nc2 {[%clk 0:02:22.9]} 15. Rb1 {[%clk
0:00:40.3]} 15... Qd7 {[%clk 0:01:48.8]} 16. Bd2 {[%clk 0:00:24.8]} 16... Rac8
{[%clk 0:01:38.3]} 17. Rc1 {[%clk 0:00:22.8]} 17... Nd4 {[%clk 0:01:38.2]} 18.
Nxd4 {[%clk 0:00:22.9]} 18... Bxd4 {[%clk 0:01:39.1]} 19. Bh6 {[%clk 0:00:23.3]}
19... Bg7 {[%clk 0:01:38.8]} 20. Bxg7 {[%clk 0:00:22.9]} 20... Kxg7 {[%clk
0:01:38.8]} 21. Qd4+ {[%clk 0:00:23.6]} 21... Kg8 {[%clk 0:01:38]} 22. Qxa7
{[%clk 0:00:23.5]} 22... Nc5 {[%clk 0:01:37.2]} 23. Qb6 {[%clk 0:00:15.9]} 23...
Nd3 {[%clk 0:01:31.9]} 24. Rcd1 {[%clk 0:00:16.2]} 24... Qd6 {[%clk 0:01:27.3]}
25. Qxd6 {[%clk 0:00:15.1]} 25... exd6 {[%clk 0:01:27.2]} 26. Ne4 {[%clk
0:00:10]} 26... Bxe4 {[%clk 0:01:23.3]} 27. Bxe4 {[%clk 0:00:10.9]} 27... Nxb2
{[%clk 0:01:24.1]} 28. Rb1 {[%clk 0:00:09.9]} 28... Nc4 {[%clk 0:01:19.4]} 29.
Rxb7 {[%clk 0:00:09.7]} 29... Nd2 {[%clk 0:01:19.1]} 30. Re1 {[%clk 0:00:05]}
30... Rfe8 {[%clk 0:01:18.8]} 31. Rb4 {[%clk 0:00:02.9]} 31... Nf3+ {[%clk
0:01:18.4]} 32. Kf1 {[%clk 0:00:02]} 32... Nxe1 {[%clk 0:01:17.9]} 33. Kxe1
{[%clk 0:00:02.4]} 33... f5 {[%clk 0:01:17.8]} 34. f3 {[%clk 0:00:03]} 34...
fxe4 {[%clk 0:01:17.5]} 35. fxe4 {[%clk 0:00:03.9]} 35... Rc3 {[%clk 0:01:16.8]}
36. Kd2 {[%clk 0:00:03.5]} 36... Rxa3 {[%clk 0:01:16.5]} 37. h4 {[%clk
0:00:04.4]} 37... Rxg3 {[%clk 0:01:15.5]} 38. Rb6 {[%clk 0:00:05.3]} 38... Rxe4
{[%clk 0:01:14.8]} 39. Rxd6 {[%clk 0:00:06.2]} 39... Rxh4 {[%clk 0:01:13.9]} 40.
Rd8+ {[%clk 0:00:05.8]} 40... Kg7 {[%clk 0:01:13.8]} 41. Rd7+ {[%clk 0:00:06.7]}
41... Kh6 {[%clk 0:01:13.3]} 42. Ke2 {[%clk 0:00:07.6]} 42... Rh2+ {[%clk
0:01:12.2]} 43. Kf1 {[%clk 0:00:08.5]} 43... Ra3 {[%clk 0:01:11.8]} 44. Rxh7+
{[%clk 0:00:08.9]} 0-1

[Event "*** Titled Tuesday Blitz"]
[Site "Chess.com"]
[Date "2020.11.10"]
[Round "9"]
[White "olksuna"]
[Black "Chessalary"]
[Result "1-0"]
[WhiteElo "2643"]
[BlackElo "2469"]
[TimeControl "180+1"]
[EndTime "11:51:24 PST"]
[Termination "olksuna won by resignation"]

1. e4 {[%clk 0:03:00.9]} 1... c5 {[%clk 0:02:59.3]} 2. Nf3 {[%clk 0:03:00.9]}
2... d6 {[%clk 0:02:58.5]} 3. d4 {[%clk 0:03:00.9]} 3... cxd4 {[%clk 0:02:59.4]}
4. Nxd4 {[%clk 0:03:01.8]} 4... Nf6 {[%clk 0:03:00.1]} 5. Nc3 {[%clk 0:03:01.9]}
5... a6 {[%clk 0:03:00.7]} 6. Be2 {[%clk 0:03:01.1]} 6... e6 {[%clk 0:03:00.6]}
7. O-O {[%clk 0:02:59.6]} 7... Be7 {[%clk 0:03:01]} 8. Be3 {[%clk 0:02:59.8]}
8... Qc7 {[%clk 0:03:00.8]} 9. f4 {[%clk 0:02:59.8]} 9... O-O {[%clk 0:03:01.4]}
10. Qe1 {[%clk 0:02:57.3]} 10... Nc6 {[%clk 0:03:01.6]} 11. Kh1 {[%clk
0:02:53.7]} 11... Nxd4 {[%clk 0:02:52.1]} 12. Bxd4 {[%clk 0:02:54.6]} 12... e5
{[%clk 0:02:52.5]} 13. fxe5 {[%clk 0:02:44.4]} 13... dxe5 {[%clk 0:02:53.4]} 14.
Qg3 {[%clk 0:02:43.9]} 14... Bd6 {[%clk 0:02:38.3]} 15. Be3 {[%clk 0:02:01.4]}
15... Kh8 {[%clk 0:02:32.2]} 16. Rxf6 {[%clk 0:01:54.3]} 16... gxf6 {[%clk
0:02:33.1]} 17. Qh4 {[%clk 0:01:37.6]} 17... Be7 {[%clk 0:02:16.3]} 18. Nd5
{[%clk 0:01:32.3]} 18... Qd6 {[%clk 0:02:16.1]} 19. Rf1 {[%clk 0:01:17.7]} 19...
Rg8 {[%clk 0:01:44.2]} 20. b4 {[%clk 0:00:55.8]} 20... Bd8 {[%clk 0:01:00.9]}
21. Bc5 {[%clk 0:00:34.6]} 21... Qe6 {[%clk 0:00:58.4]} 22. Nxf6 {[%clk
0:00:30.9]} 22... Bxf6 {[%clk 0:00:57.4]} 23. Rxf6 {[%clk 0:00:29.3]} 23... Qd7
{[%clk 0:00:22.9]} 24. Rd6 {[%clk 0:00:27]} 24... Qe8 {[%clk 0:00:13.3]} 25.
Qf6+ {[%clk 0:00:26.5]} 25... Rg7 {[%clk 0:00:13.5]} 26. Rd8 {[%clk 0:00:25.4]}
1-0